Cogmind - Beta 16 @@@ ROGUE MODE // 2025.11.08 @ 22:45:00 Player: ChromeKnight Result: Destroyed by O0-NIF(R) with Subdweller Laser Performance ------------- Evolutions (0) 0 Regions Visited (2) 400 Robots Destroyed (17) 85 Value Destroyed (438) 438 Prototype IDs (1) 20 Alien Tech Used (0) 0 Bonus (0) 0 TOTAL SCORE: 943 Bonus ------- None Cogmind --------- Core Integrity 0/250 Matter 128/300 Energy 100/100 System Corruption 0% Temperature Cool (6) Movement Rolling (95) Ox1 Location -10/Subcaves Parts ------- > --- POWER (1+1) ------ (None) > --- PROPULSION (2) --- Wheel Wheel > --- UTILITY (2) ------ Large Storage Unit Targeting Computer > --- WEAPON (2) ------- Powered Cannon > --- INVENTORY (15) --- Subdweller Monowheel Medium Matter Pod (100) Sensor Array Signal Interpreter Targeting Computer Subdweller Laser Assault Rifle Light Assault Rifle Light Assault Rifle Grenade Launcher Mining Laser Peak State ------------ > --- POWER ------------ (None) > --- PROPULSION ------- Wheel Wheel > --- UTILITY ---------- Large Storage Unit Targeting Computer > --- WEAPON ----------- Powered Cannon > --- INVENTORY -------- Subdweller Monowheel Medium Matter Pod Sensor Array Signal Interpreter Targeting Computer Subdweller Laser Assault Rifle Light Assault Rifle Light Assault Rifle Grenade Launcher Mining Laser [Rating: 19] Favorites ----------- Power Light Ion Engine Engine Light Ion Engine Propulsion Light Treads Treads Light Treads Wheel Wheel Utility Targeting Computer Storage Small Storage Unit Processor Targeting Computer Weapon Medium Laser Energy Gun Medium Laser Energy Cannon Subdweller Beam Cannon Ballistic Gun Light Assault Rifle Ballistic Cannon Light Cannon Launcher Grenade Launcher Build | -11 -10 -10 ------- Run | Yrd Mat Sub Slots Evolved . | . . . Power . | . . . Propulsion . | . . . Utility . | . . . Weapon . | . . . Parts Attached 15 | 6 3 6 Power 1 | 1 . . Engine 1 | 1 . . Core . | . . . Reactor . | . . . Propulsion 4 | 2 . 2 Treads 2 | 2 . . Leg . | . . . Wheel 2 | . . 2 Hover . | . . . Flight . | . . . Utility 3 | 1 2 . Device . | . . . Storage 2 | 1 1 . Processor 1 | . 1 . Hackware . | . . . Protection . | . . . Artifact . | . . . Weapon 7 | 2 1 4 Energy Gun 1 | 1 . . Energy Cannon 2 | . . 2 Ballistic Gun 1 | 1 . . Ballistic Cannon 1 | . 1 . Launcher 2 | . . 2 Special Weapon . | . . . Impact Weapon . | . . . Slashing Weapon . | . . . Piercing Weapon . | . . . Special Melee Weapon . | . . . Unidentified Prototypes 1 | . . 1 Parts Lost 7 | . 1 6 Power 1 | . 1 . Propulsion 2 | . . 2 Utility . | . . . Weapon 4 | . . 4 Highest Loss Streak 5 | . 1 5 To Critical Strikes . | . . . Average Backups 8 | 1 7 13 Power . | . . . Propulsion 2 | . 2 2 Utility 2 | . 2 4 Weapon 3 | . 3 6 Tool/Special . | . . . Unused Backups 11 | . 1 10 Power . | . . . Propulsion 1 | . . 1 Utility 4 | . . 4 Weapon 6 | . 1 5 Tool/Special . | . . . Average Slot Usage (%) 84 | . 85 80 Engine 1 | . 1 . Treads 27 | . 28 24 Storage 13 | . 14 13 Processor 13 | . 13 13 Energy Gun 12 | . 14 5 Energy Cannon 1 | . . 7 Ballistic Gun 2 | . 3 . Ballistic Cannon 11 | . 10 12 Peak Build Rating 19 | 6 7 19 Average Rating 6 | 4 6 7 On Entrance 4 | . 6 7 Avg Prop Armor Cover (%) . | . . . Naked Turns . | . . . Heaviest Build 31 | 11 25 31 Greatest Support 40 | 40 40 40 Greatest Overweight (x) 1 | . . 1 Average Overweight (x) . | . . . Largest Inventory Capacity 15 | 8 15 15 Average Capacity 11 | 6 10 15 Most Carried 14 | 3 12 14 Average Carried 8 | 1 7 13 Final Capacity 15 | 8 15 15 Final Carried 12 | 3 12 11 Class Distribution -------------------- 100% | Mutant Dominant Class ---------------- Mutant | -10/Materials Mutant | -10/Subcaves Resources | -11 -10 -10 ----------- Run | Yrd Mat Sub Matter Collected 490 | 175 281 34 Remotely . | . . . Salvage Created 343 | . 259 84 Parts 20 | . 17 3 Haulers Intercepted . | . . . Recyclers Shooed . | . . . Parts Field Recycled . | . . . Retrieved Matter . | . . . Parts Self-Destructed . | . . . Prevented . | . . . Parts Restored . | . . . Kills | -11 -10 -10 ------- Run | Yrd Mat Sub Combat Hostiles Destroyed 13 | . 8 5 Guns 6 | . 6 . Cannons 3 | . 2 1 AOE 4 | . . 4 Classes Destroyed 6 | . 5 1 Worker 1 | . 1 . Operator 1 | . 1 . Watcher 2 | . 2 . Swarmer 4 | . 4 . Grunt 4 | . 4 . Subdweller 5 | . . 5 Best Kill Streak 4 | . 4 4 Combat Bots Only 4 | . 3 4 Max Kills in Single Turn 2 | . 2 1 Gunslinging . | . . . Exploded 1 | . . 1 Melee . | . . . Uniques/NPCs Destroyed . | . . . Combat | -11 -10 -10 -------- Run | Yrd Mat Sub Hostile Shots Fired 86 | . 62 24 Missed 27 | . 23 4 Hits 59 | . 39 20 Projectile 59 | . 39 20 AOE 4 | . . 4 Critical Strikes 1 | . . 1 Damage Taken 980 | . 373 607 Core 253 | . 73 180 Absorbed by Shields . | . . . Core Remaining (%) 100 | 100 . . Volleys Fired 85 | . 60 25 Largest 2 | . 2 2 Hottest 110 | . 80 110 Shots Fired 119 | . 87 32 Gun 71 | . 67 4 Cannon 39 | . 20 19 Launcher 9 | . . 9 Special . | . . . Kinetic 55 | . 41 14 Thermal 55 | . 46 9 Explosive 9 | . . 9 Electromagnetic . | . . . Robot Hit Streak 19 | . 19 13 Robot Miss Streak 4 | . 4 1 Penetration Max . | . . . Secondary Targets 1 | . 1 . Max Gunslinging Chain 1 | . 1 . Shots Hit Robots 75 | . 58 17 Core Hits 31 | . 20 11 Critical Kills . | . . . Critical Parts Destroyed . | . . . Critical Strikes 6 | . 5 1 Burn 4 | . 4 . Blast 2 | . 1 1 Melee Attacks . | . . . Impact . | . . . Slashing . | . . . Piercing . | . . . Sneak Attacks . | . . . Combat Hostiles . | . . . Follow-up Attacks . | . . . Damage Inflicted 1560 | . 781 779 Guns 559 | . 510 49 Cannons 407 | . 271 136 Explosions 594 | . . 594 Melee . | . . . Ramming . | . . . Kinetic 419 | . 367 52 Thermal 547 | . 414 133 Explosive 594 | . . 594 Electromagnetic . | . . . Impact . | . . . Slashing . | . . . Piercing . | . . . Highest Corruption . | . . . Average Corruption . | . . . Corruption Purged . | . . . Corruption Blocked . | . . . Overload Shots . | . . . Overflow Damage . | . . . Projectiles . | . . . Explosions . | . . . Melee . | . . . Knockbacks 2 | . 2 . Impact . | . . . Kinetic 2 | . 2 . Secondary . | . . . Self-Inflicted Damage . | . . . Shots . | . . . Rammed . | . . . Targets Rammed . | . . . Kicked . | . . . Crushed . | . . . Highest Temperature 72 | . 72 1 Average Temperature 26 | . 26 1 Received Heat Transfer 174 | . 108 66 Siege Activations . | . . . Martial Activations . | . . . Shielding Activations . | . . . Robots Disrupted . | . . . Combat Hostiles . | . . . Robots Corrupted . | . . . Combat Hostiles . | . . . Parts Fried . | . . . Impact Corruptions . | . . . Robots Melted . | . . . Combat Hostiles . | . . . Parts Melted 2 | . 2 . Heat Transferred 1776 | . 1517 259 Parts Sabotaged . | . . . Parts Stolen . | . . . Parts Stripped . | . . . Power Chain Reactions . | . . . Alert | -11 -10 -10 ------- Run | Yrd Mat Sub Maximum Alert Level . | . . . Low Security (%) 100 | 100 100 . Level 1 . | . . . Level 2 . | . . . Level 3 . | . . . Level 4 . | . . . Level 5 . | . . . High Security . | . . . Max Security . | . . . Peak Influence 101 | . 101 . Initial . | . . . Average 15 | . 17 . Influence Increases 269 | . 269 . Destroy 0b10 Robot/C 160 | . 160 . Destroy 0b10 Robot/NC 20 | . 20 . Destroy Leader 34 | . 34 . Successful Hack 9 | . 9 . Destroy Structure 1 | . 1 . Lose Combat Pursuer 45 | . 45 . Influence Decreases 269 | . 269 . Time Decay 259 | . 259 . Lost Part 10 | . 10 . Squads Dispatched 1 | . 1 . Investigation . | . . . Extermination . | . . . Reinforcement 1 | . 1 . Assault . | . . . Garrison . | . . . Intercept . | . . . Searches Triggered . | . . . Construction Impeded . | . . . Haulers Reinforced . | . . . Active Scanning Responses . | . . . Cargo Convoy Interrupts . | . . . Stealth | -11 -10 -10 --------- Run | Yrd Mat Sub Distress Signals 3 | . 3 . Communications Jammed . | . . . Distress Signals . | . . . Times Spotted 24 | . 18 6 Peak Tracking Total 3 | . 3 3 Tactical Retreats 3 | . 3 . Traps | -11 -10 -10 ------- Run | Yrd Mat Sub Traps Triggered . | . . . Indirectly . | . . . Trap Hack Attempts . | . . . Triggered . | . . . Disarmed . | . . . Reprogrammed . | . . . Reused . | . . . Traps Extracted . | . . . Installed . | . . . Triggered . | . . . Machines | -11 -10 -10 ---------- Run | Yrd Mat Sub Machines Disabled . | . . . Max in Single Turn . | . . . Machines Repaired . | . . . Machines Dismantled . | . . . Machines Sabotaged . | . . . Overloaded Fab Kills . | . . . Hacking | -11 -10 -10 --------- Run | Yrd Mat Sub Machines Accessed 6 | . 6 . Terminals 6 | . 6 . Fabricators . | . . . Repair Stations . | . . . Recycling Units . | . . . Scanalyzers . | . . . Garrison Access . | . . . Total Hacks 14 | . 14 . Successful 8 | . 8 . Failed 6 | . 6 . Catastrophic . | . . . Database Lockouts . | . . . Manual 12 | . 12 . Terminals 14 | . 14 . Fabricators . | . . . Repair Stations . | . . . Recycling Units . | . . . Scanalyzers . | . . . Garrison Access . | . . . Terminal Hacks 1 | . 1 . Robot Analysis 1 | . 1 . Fabricator Hacks . | . . . Repair Station Hacks . | . . . Recycling Unit Hacks . | . . . Scanalyzer . | . . . Garrison Access Hacks . | . . . Unauthorized Hacks 7 | . 7 . Terminals 7 | . 7 . Operators 1 | . 1 . Skim 6 | . 6 . Fabricators . | . . . Repair Stations . | . . . Recycling Units . | . . . Scanalyzers . | . . . Garrison Access . | . . . Data Cores Recovered . | . . . Used . | . . . Hacking Detections 4 | . 4 . Full Trace Events . | . . . Feedback Events . | . . . Feedback Blocked . | . . . Robot Schematics Acquired . | . . . Robots Built . | . . . Authchips . | . . . Time . | . . . Total Robot Build Rating . | . . . Part Schematics Acquired . | . . . Parts Built . | . . . Authchips . | . . . Time . | . . . Total Part Build Rating . | . . . Part Studies Acquired . | . . . Parts Repaired . | . . . Time . | . . . Parts Recycled . | . . . Recycled Matter . | . . . Retrieved Matter . | . . . Retrieved Components . | . . . Parts Scanalyzed . | . . . Part Schematics Acquired . | . . . Parts Damaged . | . . . Bothacking | -11 -10 -10 ------------ Run | Yrd Mat Sub Used RIF Installer . | . . . Robots Hacked . | . . . Non-combat . | . . . Combat . | . . . Robot Hacks Applied . | . . . Relay Couplers Released . | . . . Fabnet Peak Effective % . | . . . Robots Rewired . | . . . Allies Hacked . | . . . Hacks Repelled . | . . . Allies | -11 -10 -10 -------- Run | Yrd Mat Sub Total Allies . | . . . Largest Group . | . . . Highest-Rated Group . | . . . Highest-Rated Ally . | . . . Total Orders . | . . . Ally Attacks . | . . . Total Damage . | . . . Kills . | . . . Allies Corrupted . | . . . Allies Melted . | . . . Intel | -11 -10 -10 ------- Run | Yrd Mat Sub Active Infowar (turns) . | . . . Robot Analysis Total 1 | . 1 . Derelict Logs Recovered . | . . . Drone Launches . | . . . Drone Recoveries . | . . . Exploration | -11 -10 -10 ------------- Run | Yrd Mat Sub Turns Passed 1646 | 89 1189 368 Spaces Moved 771 | 53 538 180 Core 6 | 6 . . Treads 740 | 47 538 155 Legs . | . . . Wheels 25 | . . 25 Hover . | . . . Flight . | . . . Fastest Speed 50 | 50 160 95 Average Speed 157 | 147 160 151 Slowest Speed 240 | 160 160 240 Overloaded Moves . | . . . Propulsion Burnouts . | . . . Robots Hopped . | . . . Potential Cave-ins . | . . . Cave-ins Triggered . | . . . Exploration Rate (%) 29 | 4 69 14 Regions Visited 2 Branch Regions 1 Pre-discovered Areas . | . . . Known Exits Taken 1 | . 1 . Unknown Exits Taken 1 | 1 . . Scrap Searched 2 | . . 2 Spaces Dug . | . . . Terrain Destroyed 22 | . . 22 Melee . | . . . Projectile . | . . . AOE 22 | . . 22 Terrain Rammed . | . . . Walls Destroyed . | . . . Machines Disabled . | . . . Actions | -11 -10 -10 --------- Run | Yrd Mat Sub Total 1089 | 61 786 242 Wait 199 | . 172 27 Move 769 | 52 537 180 Hop . | . . . Pick Up 16 | 3 11 2 Fast Attach 9 | 6 1 2 Attach 5 | . 1 4 Detach 1 | . . 1 Swap 1 | . 1 . Drop 3 | . 3 . Fire 85 | . 60 25 Melee . | . . . Ram . | . . . Kick . | . . . Crush . | . . . Escape Stasis . | . . . Rewire 1 | . . 1 Trap . | . . . Miscellaneous . | . . . Route ------- -11/Scrapyard -10/Materials (discovered 5 exits: *Mat x3 / Min / *Sub) -10/Subcaves (discovered 2 exits: Mat x2) History --------- Turn | Location | Event 3 | -11/Scrapyard | Discovered new exit (range 15) 90 | -11/Scrapyard | Entered Materials 300 | -10/Materials | Build established: Mutant 325 | -10/Materials | Discovered new exit (range 9) 478 | -10/Materials | Identified exit to Materials 478 | -10/Materials | Identified exit to Subcaves 532 | -10/Materials | Learned location of 1 exit from Storage 578 | -10/Materials | Learned location of 1 exit from Recycling 600 | -10/Materials | Discovered exit to Materials (range 3) 612 | -10/Materials | Learned Storage trap positions 635 | -10/Materials | Learned Storage emergency access door positions 648 | -10/Materials | Learned 4 Subcaves zone layouts 672 | -10/Materials | Identified exit to Mines 1279 | -10/Materials | Entered Subcaves 1280 | -10/Subcaves | Approached by a straggling Scientist 1280 | -10/Subcaves | Identified exit to Materials 1398 | -10/Subcaves | A swath of the cavern ceiling suddenly collapsed 1485 | -10/Subcaves | A swath of the cavern ceiling suddenly collapsed 1589 | -10/Subcaves | A Subdweller sparked back to life 1589 | -10/Subcaves | A Subdweller sparked back to life 1604 | -10/Subcaves | Core integrity fell below 50% 1605 | -10/Subcaves | Ambushed by Subdweller buried in earth 1607 | -10/Subcaves | Core integrity fell below 20% 1625 | -10/Subcaves | Found Prototype Energy Cannon 1625 | -10/Subcaves | Identified Powered Cannon 1626 | -10/Subcaves | Attached Powered Cannon, gained temporary slot: Power 1638 | -10/Subcaves | Lost 5 parts (2n3w) 1647 | -10/Subcaves | Destroyed by O0-NIF(R) with Subdweller Laser Last Messages --------------- 01603_ 1R-0AT(R) destroyed. 01606_ QB-EH3(R): "ARGHSUB!" 01607_ QB-EH3(R) destroyed. 01607_ Grenade Launcher destroyed. 01612_ V1-OI2(R) destroyed. 01614_ IJ-D6Y(R) affixes Scrap Shield Fragment to Scrap Shield. 01615_ The unstable cave ceiling collapses. 01616_ Destroyed Scrap Shield. 01617_ Subatomizers dissect the Prototype Energy Cannon. 01618_ IJ-D6Y(R) destroyed. 01623_ The unstable cave ceiling collapses. 01625_ Acquired Prototype Energy Cannon. 01625_ Identified Powered Cannon. 01626_ Core temporarily expanded with Power slot. 01627_ Subatomizers dissect the Sub. Laser. 8V-0LL(c): "I think it's somewhere southwest of here" Map ----- +----------------------------------------------------+ | ?????????????????????????????????????????????????? | | ?????????????????????????????????????????????????? | | ?????????????????????????????????????????????????? | | ?????????????????????????????????????????????????? | | ?????????????????????????????????????????????????? | | ?????????????????????????????????????????????????? | | ?????????????????????????????????????????????????? | | ?????????????????????????????????????????????????? | | ?????????????????????????????????????????????????? | | ?????????????????????????????????????????????????? | | #????????????????????????????????????????????????? | | ##???????????????????????????????????????????????? | | #???????????????????????????????????????????????? | | #???????????????????????????????????????????????? | | #???????????????????????????????????????????????? | | #???????????????????????????????????????????????? | | #???????????????????????????????????????????????? | | #????????????????????????????????## """ ##??????? | | ##?????????????????????????????????##"""" #??????? | | #???????????????????????????????????#""####??????? | | ????????????????????????????????????# "#?????????? | | ??????????????????????#?????????????# ##????????? | | ??????????????????????# ????????????## ##???????? | | ?????????####?????????#R####??##?????## #???????? | | ????????## ###????????< ### ####### #???????? | | ???????## #????????##@### ### ##??????? | | ??????## ###?????##< < # #??????? | | ??????# #?????# ### ##??????? | | ??????# #???# ### ### #???????? | | ?????## #??# ??# c ### # #???????? | | ?????# #?# ;#?## ##?#######???????? | | ?????# # #?### ;;#??# ###????????????????? | | ?????## # ##???####???## #?########?????????? | | ?????# ## #???????????#" ### # ## ##?#??????? | | ?????## ## #####???????#" # #??????? | | ??????# ## # #"###?##??##" ###????? | | ?????## # """""##"#?#"" ##### [ #????? | | ???### """""#"#??#"""##### & ###????? | | ??## "#"##""###?###### & #?????? | | ?## ####"#""""#?????#"# # #?????? | | ## #???#"""#########"# #?????? | | # ## #???###"#"##" " #""# " #?????? | | ### #???""#" ## ###""# ##?????? | | ##?# ###?#"""#" #"##?#""## ## " #??????? | | ##?## ##???#####"#"""#?#######?###" #??????? | | # ##?### #????????###""##????????????? ?????? | | # #???# #??????????#"##??????????????? ##????? | | " #???# ##??????????#"#????????????????##?????? | | # ##???# ##???????????#"#####???????????????????? | | ##????###??????????? # #???????????????????? | +----------------------------------------------------+ Best States ------------- Heat Dissipation 25 Energy Generation 10 Energy Capacity 125 Matter Stores 300 Matter Capacity 300 Sight Range 16 Terrain Scan Density 10 Evasion (%) 41 Targeting Accuracy 5 Recoil Reduction 2 Item Schematics ----------------- None Robot Schematics ------------------ None Fabricated ------------ Nothing Repaired ---------- Nothing Studied --------- None Alien Tech Used ----------------- None Achievements -------------- None Challenges ------------ None Game ------ Seed CompanionGhostProjector Manual? 0 Play Time 00:15:14 Cumulative 523.3 hours Start 2025.11.08 @ 22:23:45 End 2025.11.08 @ 22:45:00 Sessions 1 Manual Loads 0 Difficulty Rogue Special Mode None Game No. 856 Rogue 701 Adventurer 148 Explorer 7 Win Type - Total 25 Types 19/1/4/1/0/0/0/0/0/0 Lore% 76 Gallery% 79 Achievement% 63 Wizard Run 0 Options --------- Layout 1 ASCII 0 Keyboard 0 Movement Numpad Keybinds 0 Fullscreen 2 Font 24/Smallcaps Map View 50x40 Zoom Use 0% Tactical HUD 1 Map Filters NONE Filters NONE Steam 1 RUN: 938edd45-2bcc-48b0-8421-730ef84e381b